bitfinex/quotes_SOLUSD_20220119
["timestamp","ask_amount","ask_price","bid_price","bid_amount"]
[1642566386311,12.89590712,138.31,138.25,0.25]
[1642566386512,0.25,138.3,138.25,0.25]
[1642566386813,12.89590712,138.31,138.25,0.25]
[1642566387012,51.22365226,138.31,138.25,0.25]
[1642566390514,2.04480712,138.3,138.25,0.25]
[1642566390715,2.29480712,138.3,138.25,0.25]
[1642566391517,2.04480712,138.3,138.25,0.25]
[1642566393017,51.22365226,138.31,138.24,44.85410222]
[1642566393217,5.18680712,138.3,138.24,44.85410222]
[1642566395549,2.04480712,138.29,138.24,44.85410222]
[1642566397549,4.93680712,138.3,138.24,44.85410222]
[1642566397849,2.04480712,138.3,138.24,55.70440222]
[1642566398048,2.04480712,138.3,138.25,0.25]
[1642566398453,2.04480712,138.31,138.25,0.25]
[1642566398649,2.04480712,138.32,138.25,0.25]
[1642566399450,2.04480712,138.32,138.25,11.0995]
[1642566400254,2.04480712,138.31,138.25,11.0995]
[1642566400454,2.04480712,138.31,138.25,13.9915]
[1642566401555,2.04480712,138.32,138.25,13.9915]
[1642566401754,47.39235481,138.3,138.25,13.9915]
[1642566402453,0.25,138.29,138.25,2.892]
[1642566402854,2.04480712,138.29,138.25,2.892]
[1642566403054,52.32916193,138.3,138.25,2.892]
[1642566403255,0.25,138.29,138.25,2.892]
[1642566403458,2.04480712,138.28,138.25,2.892]
[1642566403855,4.93680712,138.29,138.25,2.892]
[1642566404057,2.04480712,138.29,138.22,13.302]
[1642566404258,2.04480712,138.29,138.23,0.25]
[1642566404458,2.04480712,138.29,138.23,43.25998098]
[1642566404961,2.04480712,138.29,138.23,54.11138098]
[1642566406260,2.04480712,138.3,138.23,55.39512485]
[1642566406461,25.33370712,138.31,138.24,2.892]
[1642566406660,25.33370712,138.31,138.25,10.8494]
[1642566406861,25.33370712,138.31,138.25,11.0994]
[1642566407462,25.33370712,138.31,138.26,44.93312445]
[1642566407663,25.33370712,138.31,138.26,55.78222445]
[1642566410966,25.33370712,138.31,138.27,0.25]
[1642566412170,23.2889,138.31,138.27,0.25]
[1642566413275,67.24425698,138.31,138.26,10.8491]
[1642566413597,2.29480712,138.3,138.25,2.892]
[1642566414370,2.29480712,138.3,138.26,43.77037481]
[1642566415876,2.29480712,138.3,138.24,12.13384387]
[1642566416073,2.29480712,138.3,138.25,0.25]
[1642566416974,13.14650712,138.3,138.25,45.38716147]
[1642566417975,13.14650712,138.3,138.23,2.892]
[1642566418174,4.93680712,138.29,138.23,2.892]
[1642566418974,4.93680712,138.29,138.24,40.76808018]
[1642566419176,46.37989193,138.28,138.24,40.76808018]
[1642566419675,15.78920712,138.29,138.24,40.76808018]
[1642566420477,15.78920712,138.29,138.22,21.2621]
[1642566420677,0.25,138.28,138.21,2.892]
[1642566420880,0.25,138.28,138.19,23.3068]
[1642566420881,2.892,138.27,138.19,2.892]
[1642566421105,2.892,138.27,138.18,4.17574387]
[1642566421278,0.25,138.26,138.18,4.17574387]
[1642566421477,46.31380678,138.26,138.19,39.25514236]
[1642566422276,46.31380678,138.26,138.2,0.25]
[1642566422476,46.31380678,138.26,138.2,11.1032]
[1642566423677,0.25,138.26,138.2,11.1032]
[1642566425182,0.25,138.26,138.2,0.25]
[1642566426580,2.892,138.25,138.19,39.25514236]
[1642566426781,46.66054179,138.24,138.17,24.1574]
[1642566426981,46.66054179,138.24,138.17,21.2654]
[1642566427783,46.66054179,138.24,138.18,0.25]
[1642566427979,46.66054179,138.24,138.17,59.81992447]
[1642566428180,2.894,138.23,138.17,59.81992447]
[1642566429282,26.0327,138.26,138.18,0.25]
[1642566429484,23.1387,138.26,138.19,10.854]
[1642566429682,23.1387,138.26,138.2,0.25]
[1642566429886,23.1387,138.26,138.2,39.45249255]
[1642566429887,74.60628961,138.26,138.2,39.45249255]
[1642566430283,74.60628961,138.26,138.2,39.20249255]
[1642566430884,74.60628961,138.26,138.21,0.25]
[1642566431085,71.71428961,138.26,138.21,0.25]
[1642566431683,71.71428961,138.26,138.2,39.20249255]
[1642566431885,0.25,138.25,138.2,39.20249255]
[1642566433387,74.60628961,138.26,138.2,39.20249255]
[1642566433798,0.25,138.25,138.2,39.20249255]
[1642566435988,85.46108961,138.26,138.2,39.20249255]
[1642566437192,0.25,138.25,138.2,39.20249255]
[1642566439598,36.8855,138.26,138.21,0.25]
[1642566439799,26.0307,138.26,138.21,7.41]
[1642566440698,23.1387,138.26,138.21,7.41]
[1642566442203,2.04480712,138.28,138.21,18.2629]
[1642566442401,2.04480712,138.3,138.22,2.892]
[1642566442603,2.04480712,138.3,138.22,19.302]
[1642566442802,2.04480712,138.3,138.23,0.25]
[1642566443005,1.46780695,138.31,138.24,2.892]
[1642566443204,2.04480712,138.32,138.26,10.8486]
[1642566443404,2.04480712,138.33,138.26,24.1506]
[1642566443627,2.04480712,138.33,138.27,0.25]
[1642566443828,2.04480712,138.34,138.27,0.25]
[1642566444229,2.04480712,138.34,138.27,38.78015358]
[1642566444427,2.04480712,138.34,138.28,10.8471]
[1642566444828,2.04480712,138.34,138.29,0.25]
[1642566445828,24.59760712,138.35,138.29,0.25]
[1642566446029,24.59760712,138.35,138.29,16.6329]
[1642566446030,2.04480712,138.35,138.29,16.6329]
[1642566446230,27.8277,138.36,138.29,16.6329]
[1642566446231,2.04480712,138.36,138.3,0.25]
[1642566446533,3.52220071,138.37,138.3,44.41984404]
[1642566446933,3.52220071,138.37,138.3,41.52884404]
[1642566447133,2.04480712,138.36,138.3,52.37504404]
[1642566447332,2.29480712,138.36,138.3,52.37504404]
[1642566447941,17.25940071,138.37,138.3,52.37504404]
[1642566448133,14.36840071,138.37,138.3,52.37504404]
[1642566448535,3.52220071,138.37,138.3,52.37504404]
[1642566448733,0.25,138.36,138.3,52.37504404]
[1642566449137,3.52220071,138.37,138.3,52.37504404]
[1642566451038,1.47739359,138.37,138.3,52.37504404]
[1642566452440,0.25,138.36,138.3,52.37504404]
[1642566452641,2.891,138.35,138.3,52.37504404]
[1642566452842,35.37736996,138.35,138.3,52.37504404]
[1642566454444,24.60709359,138.37,138.3,52.37504404]
[1642566455345,48.77533903,138.36,138.3,52.37504404]
[1642566456244,0.25,138.36,138.3,52.37504404]
[1642566456443,1.47739359,138.37,138.3,52.37504404]
[1642566456646,2.04480712,138.39,138.31,2.891]
[1642566456848,23.5309,138.4,138.33,10.843]
[1642566457045,23.5309,138.4,138.34,2.89]
[1642566457246,64.11744942,138.4,138.34,43.78587175]
[1642566457845,64.11744942,138.4,138.34,54.62867175]
[1642566458045,61.22744942,138.4,138.34,54.62867175]
[1642566458447,2.89,138.41,138.34,62.05967175]
[1642566458746,23.2051,138.42,138.35,8.89]
[1642566458945,23.2051,138.42,138.36,10.8405]
[1642566459145,23.2051,138.42,138.36,11.0905]
[1642566459348,36.85624449,138.41,138.36,0.25]
[1642566460549,36.85624449,138.41,138.35,8.89]
[1642566460749,2.89,138.4,138.35,8.89]
[1642566460948,2.89,138.4,138.35,6.0]
[1642566461150,2.89,138.4,138.33,24.1204]
[1642566461352,2.89,138.4,138.31,2.89]
[1642566461551,37.444,138.4,138.33,0.25]
[1642566461752,34.554,138.4,138.33,0.25]
[1642566462153,23.7099,138.4,138.33,0.25]
[1642566463154,23.7099,138.4,138.33,12.3767142]
[1642566463658,23.7099,138.4,138.33,11.0932]
[1642566463861,23.7099,138.4,138.33,13.9832]
[1642566464258,44.3779484,138.39,138.33,3.14]
[1642566464461,47.2689484,138.39,138.33,0.25]
[1642566464858,2.891,138.39,138.33,0.25]
[1642566465460,23.7099,138.4,138.33,0.25]
[1642566466261,23.7099,138.4,138.32,2.891]
[1642566466262,0.25,138.39,138.32,2.891]
[1642566466562,3.141,138.39,138.3,2.891]
[1642566466762,5.18580712,138.39,138.29,27.5136]
[1642566466965,5.18580712,138.39,138.29,2.891]
[1642566467165,12.45480712,138.38,138.29,2.891]
[1642566467363,10.8483,138.35,138.27,2.891]
[1642566467572,2.892,138.34,138.23,10.41]
[1642566467764,98.94270712,138.34,138.21,25.9342]
[1642566467965,98.94270712,138.34,138.21,23.0422]
[1642566468165,1.19394188,138.31,138.22,2.892]
[1642566468364,33.12171002,138.29,138.23,35.67541226]
[1642566468765,33.12171002,138.29,138.24,0.25]
[1642566471587,10.852,138.3,138.24,0.25]
[1642566471787,10.852,138.3,138.23,46.52671226]
[1642566472290,10.852,138.3,138.23,35.67541226]
[1642566472788,47.49646686,138.3,138.23,35.67541226]
[1642566475693,47.49646686,138.3,138.24,0.25]
[1642566476194,0.25,138.29,138.24,0.25]
[1642566476493,47.49646686,138.3,138.24,0.25]
[1642566477505,36.64446686,138.3,138.24,0.25]
[1642566478603,0.25,138.29,138.23,2.892]
[1642566478803,0.25,138.29,138.2,13.7443]
[1642566479003,39.53646686,138.3,138.21,0.25]
[1642566479204,36.64446686,138.3,138.21,6.25]
[1642566479404,36.64446686,138.3,138.22,43.97955995]
[1642566479604,39.53646686,138.3,138.22,49.97955995]
[1642566479911,39.53646686,138.3,138.23,0.25]
[1642566479912,50.38806686,138.3,138.23,0.25]
[1642566480105,0.25,138.29,138.23,0.25]
[1642566480707,0.25,138.29,138.22,1.22716058]
[1642566481206,0.25,138.29,138.22,0.97716058]
[1642566481408,11.1024,138.29,138.22,0.97716058]
[1642566482810,11.1024,138.29,138.22,1.22716058]
[1642566483510,2.892,138.3,138.22,12.07836058]
[1642566483712,2.04480712,138.34,138.23,10.1755142]
[1642566483910,2.04480712,138.35,138.24,10.41]
[1642566484110,2.04480712,138.35,138.25,8.892]
[1642566484310,26.86690712,138.37,138.26,0.25]
[1642566484511,62.55837369,138.36,138.26,49.80972431]
[1642566484709,0.25,138.35,138.26,49.80972431]
[1642566485714,2.29480712,138.35,138.26,49.80972431]
[1642566485913,2.892,138.34,138.26,49.80972431]
[1642566486112,35.84979485,138.33,138.26,49.80972431]
[1642566486314,36.09979485,138.33,138.26,49.80972431]
[1642566486815,35.84979485,138.33,138.26,49.80972431]
[1642566487014,2.892,138.34,138.26,49.80972431]
[1642566487213,0.25,138.33,138.27,2.892]
[1642566487416,2.892,138.34,138.28,0.25]
[1642566487615,2.892,138.34,138.26,49.80972431]
[1642566487815,36.8434,138.35,138.26,49.80972431]
[1642566488013,38.75960194,138.34,138.26,49.80972431]
[1642566494847,40.80440906,138.34,138.26,49.80972431]
[1642566496954,2.04480712,138.33,138.26,49.80972431]
[1642566497353,2.04480712,138.33,138.27,13.302]
[1642566497552,2.04480712,138.35,138.28,10.8448]
[1642566497752,2.04480712,138.36,138.29,2.891]
[1642566497950,2.04480712,138.36,138.29,8.891]
[1642566498153,2.04480712,138.36,138.3,43.79405324]
[1642566498450,35.18131242,138.37,138.3,43.79405324]
[1642566498451,2.04480712,138.37,138.31,2.891]
[1642566498651,50.54550712,138.39,138.31,14.134]
[1642566498853,50.54550712,138.39,138.32,21.5024]
[1642566499251,87.39798742,138.39,138.33,36.68551065]
[1642566499653,85.3531803,138.39,138.34,0.25]
[1642566499951,48.5007,138.39,138.34,0.25]
[1642566500455,48.5007,138.39,138.34,11.0921]
[1642566503159,48.5007,138.39,138.33,36.68551065]
[1642566503357,0.25,138.38,138.32,10.8434]
[1642566503557,5.18580712,138.38,138.3,10.41]
[1642566503755,5.18580712,138.38,138.32,0.25]
[1642566504158,4.93580712,138.38,138.32,0.25]
[1642566504357,2.891,138.38,138.32,11.094]
[1642566504557,50.54550712,138.39,138.32,11.094]
[1642566509460,48.5007,138.39,138.32,11.094]
[1642566509660,50.54550712,138.39,138.32,11.094]
[1642566509863,48.5007,138.39,138.32,11.094]
[1642566511061,23.8906,138.39,138.32,11.094]
[1642566511264,23.8906,138.39,138.32,13.985]
[1642566511864,25.93540712,138.39,138.32,13.985]
[1642566512262,25.93540712,138.39,138.32,11.094]
[1642566513565,0.25,138.38,138.32,11.094]
[1642566513766,5.18580712,138.38,138.32,11.094]
[1642566513970,3.141,138.38,138.32,11.094]
[1642566514767,0.25,138.38,138.32,11.094]
[1642566515970,2.29480712,138.38,138.32,11.094]
[1642566516568,28.82640712,138.39,138.32,11.094]
[1642566516769,25.93540712,138.39,138.32,11.094]
[1642566517769,25.93540712,138.39,138.33,13.301]
[1642566517968,2.04480712,138.41,138.35,10.8409]
[1642566518170,2.04480712,138.41,138.36,0.25]
[1642566518371,2.04480712,138.41,138.36,6.25]
[1642566518572,2.04480712,138.42,138.36,6.25]
[1642566518769,49.82650692,138.42,138.37,40.37991045]
[1642566519172,49.82650692,138.42,138.38,0.25]
[1642566519371,47.7816998,138.42,138.38,0.25]
[1642566520372,3.34427424,138.43,138.38,0.25]
[1642566521371,46.86273739,138.43,138.38,0.25]
[1642566522394,0.25,138.42,138.37,40.37991045]
[1642566522596,2.29480712,138.42,138.35,43.9259]
[1642566522796,5.18480712,138.42,138.36,0.25]
[1642566522996,2.29480712,138.42,138.35,21.2509]
[1642566523198,2.04480712,138.41,138.33,13.7325]
[1642566523399,4.93480712,138.41,138.34,0.25]
[1642566523700,0.25,138.4,138.34,0.25]
[1642566524297,4.93480712,138.41,138.34,0.25]
[1642566524499,2.04480712,138.41,138.34,10.41]
[1642566524699,2.04480712,138.41,138.35,11.0915]
[1642566525098,25.47820712,138.42,138.35,11.0915]
[1642566526399,25.47820712,138.42,138.35,13.9815]
[1642566527100,2.04480712,138.41,138.35,13.9815]
[1642566527400,2.04480712,138.41,138.35,11.0915]
[1642566527701,0.25,138.4,138.34,2.89]
[1642566527899,2.04480712,138.39,138.35,0.25]
[1642566528100,48.01937243,138.38,138.35,0.25]
[1642566528903,2.04480712,138.4,138.35,0.25]
[1642566529099,2.04480712,138.4,138.33,6.0]
[1642566529100,2.04480712,138.4,138.34,0.25]
[1642566529504,4.93480712,138.41,138.34,11.0924]
[1642566529701,0.25,138.4,138.34,11.0924]
[1642566529903,38.51152977,138.39,138.34,11.0924]
[1642566531716,38.51152977,138.39,138.34,0.25]
[1642566531913,40.55633689,138.39,138.34,0.25]
[1642566532113,48.26233689,138.39,138.33,0.25]
[1642566532314,48.26233689,138.39,138.32,0.25]
[1642566532714,48.26233689,138.39,138.31,60.56711838]
[1642566532919,40.55633689,138.39,138.32,2.891]
[1642566533114,38.51152977,138.39,138.32,2.891]
[1642566533314,38.51152977,138.39,138.33,0.25]
[1642566534514,38.51152977,138.39,138.33,11.0925]
[1642566534719,12.88780712,138.41,138.33,11.0925]
[1642566535814,47.01895169,138.4,138.33,11.0925]
[1642566536915,49.90895169,138.4,138.33,11.0925]
[1642566537117,51.95375881,138.4,138.33,11.0925]
[1642566542023,49.06375881,138.4,138.33,11.0925]
[1642566546028,2.04480712,138.39,138.33,11.0925]
[1642566546728,2.04480712,138.39,138.33,0.25]
[1642566546928,24.79140712,138.39,138.33,0.25]
[1642566547130,24.79140712,138.39,138.32,0.25]
[1642566547327,27.68240712,138.39,138.32,0.25]
[1642566547528,2.04480712,138.38,138.29,3.141]
[1642566547928,2.04480712,138.38,138.3,10.8452]
[1642566548226,2.04480712,138.38,138.31,0.25]
[1642566548527,2.29480712,138.37,138.31,0.25]
[1642566548962,2.04480712,138.37,138.31,11.095]
[1642566549257,2.04480712,138.38,138.31,11.095]
[1642566549457,2.891,138.37,138.31,11.095]
[1642566549661,2.04480712,138.37,138.31,11.095]
[1642566549859,5.18580712,138.38,138.31,11.095]
[1642566550063,5.18580712,138.38,138.32,41.29765078]
[1642566550264,2.04480712,138.38,138.33,0.25]
[1642566550459,2.04480712,138.38,138.32,10.8443]
[1642566550662,38.52760712,138.39,138.33,0.25]
[1642566550865,2.04480712,138.38,138.33,0.25]
[1642566555062,2.04480712,138.38,138.32,10.8443]
[1642566556172,0.25,138.37,138.32,10.8443]
[1642566556372,2.04480712,138.38,138.33,0.25]
[1642566556971,2.04480712,138.38,138.33,11.0933]
[1642566557172,24.79140712,138.39,138.33,11.0933]
[1642566561679,22.7466,138.39,138.33,11.0933]
[1642566561978,24.79140712,138.39,138.33,11.0933]
[1642566562178,22.7466,138.39,138.33,11.0933]
[1642566562579,2.04480712,138.4,138.33,11.0933]
[1642566562779,2.04480712,138.4,138.34,2.89]
[1642566562979,2.04480712,138.41,138.34,2.89]
[1642566563182,2.04480712,138.41,138.36,36.97556903]
[1642566563580,2.04480712,138.41,138.37,0.25]
[1642566563979,2.04480712,138.41,138.36,36.97556903]
[1642566565182,2.04480712,138.41,138.37,0.25]
[1642566565381,26.50330712,138.42,138.37,0.25]
[1642566565582,26.50330712,138.42,138.37,11.0903]
[1642566565782,2.04480712,138.42,138.37,11.0903]
[1642566565981,2.04480712,138.42,138.37,17.4233]
[1642566566182,2.04480712,138.42,138.37,27.8333]
[1642566566382,6.23427424,138.43,138.37,27.8333]
[1642566566583,3.34427424,138.43,138.37,30.7233]
[1642566566984,3.34427424,138.43,138.37,30.4733]
[1642566567186,0.25,138.42,138.37,30.4733]
[1642566567412,3.14,138.42,138.37,27.5833]
[1642566567883,3.14,138.42,138.37,17.1733]
[1642566568084,4.06996796,138.47,138.39,53.0]
[1642566568285,2.04175004,138.45,138.4,3.138]
[1642566568485,2.04156374,138.46,138.41,10.41]
[1642566568690,2.06983838,138.49,138.42,3.138]
[1642566568884,2.06983838,138.49,138.43,10.41]
[1642566569087,0.02867068,138.49,138.44,49.92889969]
[1642566569284,0.02867068,138.49,138.45,10.41]
[1642566569483,0.02867068,138.49,138.47,10.831]
[1642566569685,0.02867068,138.49,138.48,13.548]
[1642566569884,0.02867068,138.49,138.48,10.66]
[1642566570088,0.00867068,138.49,138.48,16.66]
[1642566570286,0.00867068,138.49,138.48,58.57152182]
[1642566570486,2.0411677,138.58,138.48,59.84883706]
[1642566570787,2.0411677,138.59,138.51,10.8272]
[1642566570987,2.0411677,138.59,138.52,10.41]
[1642566571188,2.0411677,138.62,138.52,16.66]
[1642566571385,2.0411677,138.62,138.53,37.52848311]
[1642566571588,4.9281677,138.63,138.54,10.41]
[1642566571786,4.9281677,138.63,138.54,10.66]
[1642566571987,36.14208297,138.62,138.54,10.66]
[1642566572186,36.14208297,138.62,138.54,21.2358]
[1642566572590,46.96948297,138.62,138.53,40.41448311]
[1642566572786,2.886,138.61,138.53,37.52848311]
[1642566573589,0.25,138.6,138.53,37.52848311]
[1642566573788,2.886,138.59,138.53,37.52848311]
[1642566574089,40.83112481,138.58,138.53,37.52848311]
[1642566574389,41.08112481,138.58,138.53,37.52848311]
[1642566574588,41.08112481,138.58,138.53,48.35678311]
[1642566574921,40.83112481,138.58,138.53,10.8283]
[1642566575094,0.25,138.57,138.5,2.886]
[1642566575289,3.137,138.57,138.48,22.9301]
[1642566575990,3.137,138.57,138.49,36.06745895]
[1642566576199,40.83112481,138.58,138.52,40.32985712]
[1642566576391,2.887,138.6,138.52,40.32985712]
[1642566576591,22.6734,138.61,138.53,0.25]
[1642566576792,0.25,138.6,138.53,0.25]
[1642566576991,0.25,138.6,138.52,40.32985712]
[1642566577190,2.886,138.59,138.52,51.15845712]
[1642566578193,2.886,138.59,138.53,0.25]
[1642566578393,37.24829269,138.6,138.54,10.8274]
[1642566578593,37.24829269,138.6,138.55,40.30439756]
[1642566579796,40.13429269,138.6,138.55,40.30439756]
[1642566580404,122.17299269,138.6,138.52,13.7145]
[1642566580603,122.17299269,138.6,138.51,10.41]
[1642566580808,50.96299269,138.6,138.48,33.3401]
[1642566581005,22.7275,138.59,138.5,0.25]
[1642566581203,22.7275,138.59,138.51,10.41]
[1642566581405,22.7275,138.59,138.52,2.887]
[1642566581703,37.24829269,138.6,138.53,49.78276818]
[1642566582003,0.25,138.6,138.53,49.78276818]
[1642566582204,11.0778,138.61,138.54,0.25]
[1642566582431,11.0778,138.61,138.53,39.37276818]
[1642566582631,2.886,138.6,138.53,39.37276818]
[1642566582834,43.80546063,138.59,138.53,39.37276818]
[1642566583031,2.886,138.58,138.53,39.37276818]
[1642566583231,2.886,138.6,138.53,39.37276818]
[1642566583632,0.25,138.59,138.53,10.8282]
[1642566584034,2.886,138.58,138.51,10.41]
[1642566584234,3.137,138.59,138.51,10.41]
[1642566584434,0.25,138.59,138.51,10.41]
[1642566584836,46.02104114,138.59,138.52,48.00480278]
[1642566586136,48.90704114,138.59,138.52,10.829]
[1642566586736,59.73654114,138.59,138.52,10.829]
[1642566586936,59.73654114,138.59,138.5,13.7171]
[1642566587235,82.41234114,138.59,138.5,13.7171]
[1642566588038,82.41234114,138.59,138.51,46.34252864]
[1642566589039,82.41234114,138.59,138.5,10.8301]
[1642566589240,164.03234114,138.59,138.48,13.7186]
[1642566589441,164.03234114,138.59,138.48,10.8316]
[1642566589842,166.07350884,138.59,138.48,10.8316]
[1642566590042,166.07350884,138.59,138.49,42.23384665]
[1642566590843,164.03234114,138.59,138.49,42.23384665]
[1642566592045,164.03234114,138.59,138.48,10.8316]
[1642566592247,166.07350884,138.59,138.48,10.8316]
[1642566592447,10.8323,138.56,138.48,10.8316]
[1642566592645,2.887,138.55,138.48,10.8316]
[1642566592846,0.25,138.55,138.49,11.0815]
[1642566593048,44.65747016,138.55,138.49,10.8315]
[1642566595350,4.9281677,138.57,138.49,10.8315]
[1642566595551,25.0540677,138.57,138.49,10.8315]
[1642566595752,0.25,138.56,138.5,11.0805]
[1642566596149,0.25,138.56,138.5,10.8305]
[1642566596451,42.29605674,138.56,138.5,10.8305]
[1642566597151,44.33722444,138.56,138.5,10.8305]
[1642566598154,2.0411677,138.55,138.5,10.8305]
[1642566599055,42.29605674,138.56,138.49,10.8316]
[1642566599056,34.83273461,138.53,138.49,10.8316]
[1642566599255,34.83273461,138.53,138.49,11.0816]
[1642566599659,0.25,138.52,138.48,2.887]
[1642566599856,0.25,138.52,138.44,85.3234]
[1642566600057,25.3049677,138.52,138.45,0.25]
[1642566600259,25.3049677,138.52,138.44,129.82095426]
[1642566600460,25.3049677,138.52,138.46,10.8342]
[1642566600659,38.01309921,138.5,138.44,25.8472]
[1642566600961,38.01309921,138.5,138.44,2.887]
[1642566601588,2.0411677,138.52,138.44,2.887]
[1642566601888,2.0411677,138.52,138.45,81.62]
[1642566602088,2.0411677,138.53,138.45,88.8987619]
[1642566602288,2.0411677,138.54,138.46,0.25]
[1642566602587,2.0411677,138.54,138.47,46.9918911]
[1642566602787,2.0411677,138.54,138.48,0.25]
[1642566602988,2.0411677,138.54,138.48,3.137]
[1642566603887,37.65461143,138.52,138.48,3.137]
[1642566604087,37.65461143,138.52,138.48,11.0826]
[1642566604287,37.65461143,138.52,138.48,0.25]
[1642566604489,37.65461143,138.52,138.47,0.25]
[1642566604691,39.69577913,138.52,138.45,2.888]
[1642566605091,39.69577913,138.52,138.47,10.8334]
[1642566605693,2.0411677,138.53,138.48,0.25]
[1642566605892,2.0411677,138.53,138.46,0.25]
[1642566606794,44.11154456,138.52,138.48,10.832]
[1642566607193,44.11154456,138.52,138.46,39.12562432]
[1642566607393,2.0411677,138.53,138.46,39.12562432]
[1642566608194,2.0411677,138.52,138.46,39.12562432]
[1642566608597,2.0411677,138.52,138.47,10.8333]
[1642566608795,37.38288575,138.53,138.48,0.25]
[1642566609396,37.38288575,138.53,138.47,0.25]
[1642566609596,37.38288575,138.53,138.47,11.0832]
[1642566610198,2.2911677,138.52,138.45,2.888]
[1642566610397,2.2911677,138.52,138.37,21.4165]
[1642566610398,50.0,138.5,138.37,21.4165]
[1642566610601,10.8377,138.48,138.37,11.0065]
[1642566610797,22.7589,138.47,138.35,1.92742865]
[1642566610999,35.2100677,138.47,138.35,10.8405]
[1642566611204,9.52646172,138.46,138.34,1.92742865]
[1642566611403,10.41,138.45,138.34,1.92742865]
[1642566611598,2.89,138.44,138.33,1.92742865]
[1642566611802,43.07984701,138.43,138.33,1.92742865]
[1642566612005,2.89,138.42,138.33,1.92742865]
[1642566612200,10.66,138.41,138.29,48.66287991]
[1642566612432,12.45133276,138.4,138.29,48.66287991]
[1642566612701,10.8461,138.37,138.29,2.891]
[1642566612899,10.8461,138.37,138.27,4.81842865]
[1642566613101,10.8461,138.37,138.25,4.81842865]
[1642566613300,3.142,138.36,138.26,10.8471]
[1642566613599,0.25,138.36,138.28,48.19729998]
[1642566613803,2.891,138.38,138.28,48.19729998]
[1642566614100,0.25,138.37,138.29,2.891]
[1642566614299,0.25,138.37,138.3,0.25]
[1642566614499,2.891,138.39,138.3,0.25]
[1642566614698,1.56708775,138.4,138.31,2.891]
[1642566614899,1.56708775,138.4,138.32,49.44274629]
[1642566615100,0.25,138.39,138.32,49.69274629]
[1642566615500,1.56708775,138.4,138.32,49.69274629]
[1642566615700,1.56708775,138.4,138.32,60.53484629]
[1642566616901,1.56708775,138.4,138.32,70.94484629]
[1642566617101,1.56708775,138.4,138.33,6.0]
[1642566617303,1.56708775,138.4,138.35,10.8391]
[1642566617501,24.3994,138.46,138.35,10.8391]
[1642566617704,36.32782636,138.49,138.36,58.82710576]
[1642566618101,33.43782636,138.49,138.36,58.82710576]
[1642566618302,33.43782636,138.49,138.37,74.098]
[1642566618504,33.43782636,138.49,138.38,10.41]
[1642566618709,0.25,138.48,138.39,51.03817957]
[1642566618905,0.25,138.48,138.39,61.87437957]
[1642566619104,0.25,138.48,138.4,0.25]
[1642566620204,44.27512636,138.49,138.4,0.25]
[1642566620403,44.27512636,138.49,138.4,11.0866]
[1642566620604,10.8358,138.5,138.4,11.0866]
[1642566620906,2.888,138.51,138.4,21.4966]
[1642566621506,31.67061892,138.5,138.4,21.4966]
[1642566621704,42.50651892,138.5,138.41,2.888]
[1642566622104,0.25,138.49,138.41,2.888]
[1642566622304,3.138,138.49,138.42,0.25]
[1642566622805,13.7253,138.49,138.4,2.888]
[1642566623004,13.7253,138.49,138.41,0.25]
[1642566623807,10.8387,138.47,138.38,10.8376]
[1642566624009,2.888,138.46,138.35,36.1259]
[1642566624207,2.888,138.46,138.37,0.25]
[1642566624407,2.89,138.47,138.37,71.46]
[1642566624607,2.888,138.49,138.38,13.298]
[1642566624806,2.888,138.49,138.4,10.8361]
[1642566625207,2.888,138.49,138.41,0.25]
[1642566625708,2.888,138.49,138.4,10.8361]
[1642566625911,2.888,138.49,138.41,0.25]
[1642566626112,2.888,138.49,138.39,39.54578238]
[1642566626113,0.25,138.48,138.39,39.54578238]